Cogmind - Beta 14 @@@ ROGUE MODE // 2024.12.21 @ 21:08:21 Player: blackdogzx Result: Destroyed by Y-45 Defender with Beam Rifle Performance ------------- Evolutions (2) 1000 Regions Visited (4) 800 Robots Destroyed (20) 100 Value Destroyed (491) 491 Prototype IDs (0) 0 Alien Tech Used (0) 0 Bonus (0) 0 TOTAL SCORE: 2391 Bonus ------- None Cogmind --------- Core Integrity 0/550 Matter 300/300 Energy 99/100 System Corruption 0% Temperature Cool (9) Movement Core (100) Ox1 Location -8/Materials Parts ------- > --- POWER (1) -------- (None) > --- PROPULSION (2) --- (None) > --- UTILITY (6) ------ Small Storage Unit > --- WEAPON (2) ------- (None) > --- INVENTORY (8) ---- Ion Engine Improved Signal Interpreter Weapon Cycler Pulse Rifle Improved Datajack Peak State ------------ > --- POWER ------------ Light Nuclear Core > --- PROPULSION ------- Aluminum Leg > --- UTILITY ---------- Improved Heat Sink Small Storage Unit Compact Matter Pod Energy Filter Energy Filter Improved Light Armor Plating > --- WEAPON ----------- Heavy Assault Rifle EMP Blaster > --- INVENTORY -------- Ion Engine Ion Engine Improved Signal Interpreter Weapon Cycler Pulse Rifle Improved Datajack [Rating: 27] Favorites ----------- Power Ion Engine Engine Ion Engine Power Core Light Nuclear Core Propulsion Aluminum Leg Leg Aluminum Leg Utility Small Storage Unit Device Improved Heat Sink Storage Small Storage Unit Protection Improved Light Armor Plating Weapon Grenade Launcher Energy Gun Particle Gun Ballistic Gun Heavy Assault Rifle Launcher Grenade Launcher Build | -11 -10 -10 -10 -8 ------- Run | Yrd Mat Min Sub Mat Slots Evolved 4 | . . . . 4 Power . | . . . . . Propulsion . | . . . . . Utility 4 | . . . . 4 Weapon . | . . . . . Parts Attached 18 | 5 1 3 . 9 Power 3 | 1 . . . 2 Engine 2 | 1 . . . 1 Core 1 | . . . . 1 Reactor . | . . . . . Propulsion 3 | 2 . 1 . . Treads . | . . . . . Leg 3 | 2 . 1 . . Wheel . | . . . . . Hover . | . . . . . Flight . | . . . . . Utility 6 | 1 . 1 . 4 Device 3 | . . 1 . 2 Storage 2 | 1 . . . 1 Processor . | . . . . . Hackware . | . . . . . Protection 1 | . . . . 1 Artifact . | . . . . . Weapon 6 | 1 1 1 . 3 Energy Gun 3 | 1 . 1 . 1 Energy Cannon . | . . . . . Ballistic Gun 1 | . . . . 1 Ballistic Cannon . | . . . . . Launcher 2 | . 1 . . 1 Special Weapon . | . . . . . Impact Weapon . | . . . . . Slashing Weapon . | . . . . . Piercing Weapon . | . . . . . Special Melee Weapon . | . . . . . Unidentified Prototypes . | . . . . . Parts Lost 13 | . . 1 1 11 Power 2 | . . . . 2 Propulsion 2 | . . . . 2 Utility 5 | . . . . 5 Weapon 4 | . . 1 1 2 Highest Loss Streak 9 | . . 1 1 9 To Critical Strikes . | . . . . . Average Slot Usage (%) 79 | . 85 95 100 67 Engine 6 | . 14 14 14 . Core 3 | . . . . 7 Leg 17 | . 28 28 28 9 Device 10 | . . 10 14 12 Storage 15 | . 14 14 14 16 Protection 3 | . . . . 6 Energy Gun 7 | . 14 13 14 2 Ballistic Gun 2 | . . . . 5 Launcher 10 | . 14 14 14 7 Peak Build Rating 27 | 5 6 10 10 27 Average Rating 13 | 3 5 8 9 18 On Entrance 6 | . 5 6 10 9 Naked Turns . | . . . . . Heaviest Build 28 | 12 15 17 17 28 Greatest Support 20 | 20 20 20 20 20 Greatest Overweight (x) 3 | 1 . . . 3 Average Overweight (x) . | . . . . 1 Largest Inventory Capacity 8 | 8 8 8 8 8 Average Capacity 7 | 7 8 8 8 8 Most Carried 8 | 1 1 2 2 8 Average Carried 3 | . 1 1 2 5 Final Capacity 8 | 8 8 8 8 8 Final Carried 5 | 1 1 2 2 5 Class Distribution -------------------- 100% | Mutant Dominant Class ---------------- Mutant | -10/Materials Mutant | -10/Mines Mutant | -10/Subcaves Mutant | -8/Materials Resources | -11 -10 -10 -10 -8 ----------- Run | Yrd Mat Min Sub Mat Matter Collected 498 | 245 35 110 . 108 Remotely . | . . . . . Salvage Created 437 | . 33 107 49 248 Parts 43 | . 11 6 3 23 Haulers Intercepted . | . . . . . Recyclers Shooed . | . . . . . Parts Field Recycled . | . . . . . Retrieved Matter . | . . . . . Parts Self-Destructed 2 | . . . 2 . Prevented . | . . . . . Kills | -11 -10 -10 -10 -8 ------- Run | Yrd Mat Min Sub Mat Combat Hostiles Destroyed 20 | . 3 6 1 10 Guns 5 | . . 4 . 1 AOE 15 | . 3 2 1 9 Classes Destroyed 8 | . 2 3 . 3 Worker 1 | . 1 . . . Builder 1 | . . . . 1 Watcher 1 | . . . . 1 Swarmer 10 | . 3 . . 7 Grunt 5 | . . 2 1 2 Sentry 1 | . . . . 1 Demolisher 1 | . . 1 . . Assembled 3 | . . 3 . . Best Kill Streak 7 | . 4 4 1 7 Combat Bots Only 5 | . 3 4 1 5 Max Kills in Single Turn 7 | . 3 1 1 7 Gunslinging . | . . . . . Exploded 5 | . 2 1 1 5 Melee . | . . . . . Uniques/NPCs Destroyed . | . . . . . Combat | -11 -10 -10 -10 -8 -------- Run | Yrd Mat Min Sub Mat Hostile Shots Fired 137 | . 2 11 6 118 Missed 28 | . 1 3 1 23 Damage Taken 1709 | . 6 206 85 1412 Core 596 | . . 45 . 551 Absorbed by Shields . | . . . . . Core Remaining (%) 91 | 100 . . 82 . Volleys Fired 43 | . 3 12 4 24 Largest 2 | . 2 2 2 2 Hottest 98 | . 70 95 95 98 Shots Fired 56 | . 5 17 5 29 Gun 37 | . 3 9 4 21 Cannon . | . . . . . Launcher 19 | . 2 8 1 8 Special . | . . . . . Kinetic 16 | . . . . 16 Thermal 12 | . . 3 4 5 Explosive 11 | . 2 8 1 . Electromagnetic 17 | . 3 6 . 8 Robot Hit Streak 7 | . 3 3 6 7 Robot Miss Streak 3 | . 1 1 . 3 Penetration Max . | . . . . . Secondary Targets . | . . . . . Shots Hit Robots 29 | . 3 8 3 15 Core Hits 35 | . 6 12 1 16 Critical Kills . | . . . . . Critical Parts Destroyed 1 | . . . . 1 Critical Strikes 2 | . . . 1 1 Burn 1 | . . . 1 . Destroy 1 | . . . . 1 Melee Attacks . | . . . . . Impact . | . . . . . Slashing . | . . . . . Piercing . | . . . . . Sneak Attacks . | . . . . . Combat Hostiles . | . . . . . Follow-up Attacks . | . . . . . Damage Inflicted 1507 | . 252 338 119 798 Guns 295 | . 24 74 43 154 Cannons . | . . . . . Explosions 1205 | . 228 263 76 638 Melee . | . . . . . Ramming 7 | . . 1 . 6 Kinetic 121 | . . . . 121 Thermal 522 | . . 32 43 447 Explosive 567 | . 228 263 76 . Electromagnetic 290 | . 24 42 . 224 Impact . | . . . . . Slashing . | . . . . . Piercing . | . . . . . Highest Corruption . | . . . . . Average Corruption . | . . . . . Corruption Purged . | . . . . . Corruption Blocked . | . . . . . Overload Shots . | . . . . . Overflow Damage 41 | . . . . 41 Projectiles . | . . . . . Explosions 41 | . . . . 41 Melee . | . . . . . Knockbacks . | . . . . . Impact . | . . . . . Kinetic . | . . . . . Secondary . | . . . . . Self-Inflicted Damage 15 | . . . . 15 Shots 3 | . . . . 3 Rammed 4 | . . . . 4 Targets Rammed 7 | . . 1 . 6 Kicked 3 | . . 1 . 2 Crushed . | . . . . . Highest Temperature 94 | . 18 27 . 94 Average Temperature 22 | . 12 9 . 35 Received Heat Transfer 858 | . . 36 30 792 Siege Activations . | . . . . . Robots Corrupted . | . . . . . Combat Hostiles . | . . . . . Parts Fried . | . . . . . Impact Corruptions . | . . . . . Robots Melted . | . . . . . Combat Hostiles . | . . . . . Parts Melted 1 | . . . . 1 Heat Transferred 633 | . . 74 185 374 Parts Sabotaged . | . . . . . Parts Stolen . | . . . . . Parts Stripped . | . . . . . Power Chain Reactions . | . . . . . Alert | -11 -10 -10 -10 -8 ------- Run | Yrd Mat Min Sub Mat Peak Influence 364 | . 117 85 . 364 Initial 46 | . . 45 . 46 Average 144 | . 53 48 . 228 Maximum Alert Level 1 | . . . . 1 Low Security (%) 67 | 100 100 100 . 40 Level 1 32 | . . . . 59 Level 2 . | . . . . . Level 3 . | . . . . . Level 4 . | . . . . . Level 5 . | . . . . . High Security . | . . . . . Max Security . | . . . . . Squads Dispatched 4 | . 2 . . 2 Investigation . | . . . . . Extermination . | . . . . . Reinforcement 4 | . 2 . . 2 Assault . | . . . . . Garrison . | . . . . . Intercept . | . . . . . Searches Triggered . | . . . . . Construction Impeded . | . . . . . Haulers Reinforced . | . . . . . Active Scanning Responses . | . . . . . Cargo Convoy Interrupts . | . . . . . Stealth | -11 -10 -10 -10 -8 --------- Run | Yrd Mat Min Sub Mat Distress Signals 6 | . 2 . . 4 Communications Jammed . | . . . . . Distress Signals . | . . . . . Times Spotted 44 | . 6 9 3 26 Peak Tracking Total 10 | . 5 5 2 10 Tactical Retreats 2 | . . . 1 1 Traps | -11 -10 -10 -10 -8 ------- Run | Yrd Mat Min Sub Mat Traps Triggered . | . . . . . Indirectly . | . . . . . Trap Hack Attempts . | . . . . . Triggered . | . . . . . Disarmed . | . . . . . Reprogrammed . | . . . . . Reused . | . . . . . Traps Extracted . | . . . . . Installed . | . . . . . Triggered . | . . . . . Machines | -11 -10 -10 -10 -8 ---------- Run | Yrd Mat Min Sub Mat Machines Disabled 4 | . . 1 . 3 Max in Single Turn 2 | . . 1 . 2 Machines Repaired . | . . . . . Machines Dismantled . | . . . . . Machines Sabotaged . | . . . . . Overloaded Fab Kills . | . . . . . Hacking | -11 -10 -10 -10 -8 --------- Run | Yrd Mat Min Sub Mat Machines Accessed 1 | . . . . 1 Terminals . | . . . . . Fabricators . | . . . . . Repair Stations . | . . . . . Recycling Units . | . . . . . Scanalyzers 1 | . . . . 1 Garrison Access . | . . . . . Total Hacks 3 | . . . . 3 Successful 3 | . . . . 3 Failed . | . . . . . Catastrophic . | . . . . . Database Lockouts . | . . . . . Manual . | . . . . . Terminals . | . . . . . Fabricators . | . . . . . Repair Stations . | . . . . . Recycling Units . | . . . . . Scanalyzers 3 | . . . . 3 Garrison Access . | . . . . . Terminal Hacks . | . . . . . Fabricator Hacks . | . . . . . Repair Station Hacks . | . . . . . Recycling Unit Hacks . | . . . . . Scanalyzer 3 | . . . . 3 Insert Component 2 | . . . . 2 Analyze 1 | . . . . 1 Garrison Access Hacks . | . . . . . Unauthorized Hacks . | . . . . . Terminals . | . . . . . Fabricators . | . . . . . Repair Stations . | . . . . . Recycling Units . | . . . . . Scanalyzers . | . . . . . Garrison Access . | . . . . . Data Cores Recovered . | . . . . . Used . | . . . . . Hacking Detections 1 | . . . . 1 Full Trace Events . | . . . . . Feedback Events . | . . . . . Feedback Blocked . | . . . . . Robot Schematics Acquired . | . . . . . Robots Built . | . . . . . Authchips . | . . . . . Time . | . . . . . Total Robot Build Rating . | . . . . . Part Schematics Acquired 1 | . . . . 1 Parts Built . | . . . . . Authchips . | . . . . . Time . | . . . . . Total Part Build Rating . | . . . . . Parts Repaired . | . . . . . Time . | . . . . . Parts Recycled . | . . . . . Recycled Matter . | . . . . . Retrieved Matter . | . . . . . Retrieved Components . | . . . . . Parts Scanalyzed 1 | . . . . 1 Part Schematics Acquired 1 | . . . . 1 Parts Damaged . | . . . . . Bothacking | -11 -10 -10 -10 -8 ------------ Run | Yrd Mat Min Sub Mat Used RIF Installer . | . . . . . Robots Hacked . | . . . . . Non-combat . | . . . . . Combat . | . . . . . Robot Hacks Applied . | . . . . . Relay Couplers Released . | . . . . . Fabnet Peak Effective % . | . . . . . Robots Rewired . | . . . . . Allies Hacked . | . . . . . Hacks Repelled . | . . . . . Allies | -11 -10 -10 -10 -8 -------- Run | Yrd Mat Min Sub Mat Total Allies 3 | . . 3 . . Largest Group 3 | . . 3 . . Highest-Rated Group 40 | . . 40 . . Highest-Rated Ally 16 | . . 16 . . Total Orders . | . . . . . Ally Attacks 11 | . . 11 . . Total Damage 57 | . . 57 . . Kills . | . . . . . Allies Corrupted . | . . . . . Allies Melted . | . . . . . Intel | -11 -10 -10 -10 -8 ------- Run | Yrd Mat Min Sub Mat Robot Analysis Total . | . . . . . Derelict Logs Recovered 1 | . . 1 . . Drone Launches . | . . . . . Drone Recoveries . | . . . . . Exploration | -11 -10 -10 -10 -8 ------------- Run | Yrd Mat Min Sub Mat Turns Passed 1210 | 72 117 318 98 605 Spaces Moved 701 | 56 90 227 56 272 Core 84 | 10 . . . 74 Treads . | . . . . . Legs 617 | 46 90 227 56 198 Wheels . | . . . . . Hover . | . . . . . Flight . | . . . . . Fastest Speed 50 | 50 120 120 120 100 Average Speed 144 | 114 120 120 120 185 Slowest Speed 260 | 120 120 120 120 260 Overloaded Moves . | . . . . . Propulsion Burnouts . | . . . . . Robots Hopped . | . . . . . Cave-ins Triggered . | . . . . . Exploration Rate (%) 22 | 4 23 42 7 34 Regions Visited 4 Branch Regions 2 Pre-discovered Areas . | . . . . . Known Exits Taken . | . . . . . Unknown Exits Taken 4 | 1 1 1 1 . Scrap Searched . | . . . . . Spaces Dug . | . . . . . Terrain Destroyed 84 | . 10 37 7 30 Melee . | . . . . . Projectile . | . . . . . AOE 84 | . 10 37 7 30 Terrain Rammed . | . . . . . Walls Destroyed . | . . . . . Machines Disabled . | . . . . . Actions | -11 -10 -10 -10 -8 --------- Run | Yrd Mat Min Sub Mat Total 825 | 61 93 254 82 335 Wait 47 | . . 10 23 14 Move 697 | 55 89 226 55 272 Hop . | . . . . . Pick Up 7 | 1 . 1 . 5 Fast Attach 14 | 5 1 2 . 6 Attach 3 | . . . . 3 Detach 3 | . . . . 3 Swap 1 | . . 1 . . Drop 3 | . . 1 . 2 Fire 43 | . 3 12 4 24 Melee . | . . . . . Ram 4 | . . . . 4 Kick 3 | . . 1 . 2 Crush . | . . . . . Escape Stasis . | . . . . . Rewire . | . . . . . Trap . | . . . . . Miscellaneous . | . . . . . Route ------- -11/Scrapyard -10/Materials -10/Mines (discovered 2 exits: [*Mat] / [*Sub]) -10/Subcaves -8/Materials (discovered 2 exits: *Fac x2) History --------- Turn | Location | Event 2 | -11/Scrapyard | Met Revision 17 9 | -11/Scrapyard | Discovered new exit (range 15) 73 | -11/Scrapyard | Entered Materials 153 | -10/Materials | Discovered new exit (range 13) 190 | -10/Materials | Entered Mines 191 | -10/Mines | Assembled infested the area 194 | -10/Mines | Assisted by bots powering up and referring to "LRC-V3" 291 | -10/Mines | Lost 3 allies 314 | -10/Mines | Build established: Mutant 405 | -10/Mines | Discovered new exit (range 5) 462 | -10/Mines | Learned location of 1 exit from Materials 462 | -10/Mines | Discovered new exit (range 12) 508 | -10/Mines | Entered Subcaves 567 | -10/Subcaves | Shifting Twisted Machinery released Scrap Shield 569 | -10/Subcaves | Discovered new exit (range 8) 578 | -10/Subcaves | Shifting Twisted Machinery released Hvy. Riot Gun 592 | -10/Subcaves | Ambushed by angry Subdweller bent on revenge 606 | -10/Subcaves | Entered Materials 606 | -8/Materials | Evolved 4 slots: Utility x4 607 | -8/Materials | Identified exit to Factory 1000 | -8/Materials | Discovered exit to Factory (range 11) 1158 | -8/Materials | Lost 9 parts (1p1n5u2w) 1189 | -8/Materials | Core integrity fell below 50% 1201 | -8/Materials | Core integrity fell below 20% 1211 | -8/Materials | Destroyed by Y-45 Defender with Beam Rifle Last Messages --------------- 01120_ Energy Filter destroyed. 01123_ Imp. Light Armor Plating destroyed. 01124_ Slammed into G-47 Trooper. 01124_ EMP Blaster destroyed. 01125_ Acquired 28 matter. 01126_ Critical hit (Burn: +37). 01127_ Com. Matter Pod destroyed. 01170_ U-05 Engineer works on Matter Pump. 01172_ K-01 Serf collects debris. 01178_ Slammed into K-01 Serf. 01180_ Slammed into R-06 Scavenger. 01182_ C-30 ARC bursts open, deploying its payload. 01182_ G-50 Soldier unfolds itself. 01182_ G-47 Trooper unfolds itself. 01187_ K-01 Serf collects debris. 01188_ Critical hit (Burn: +37). 01191_ K-01 Serf collects debris. 01194_ Ion Engine destroyed. 01208_ Critical hit (Burn: +37). Map ----- +----------------------------------------------------+ | ?????????????????????????????????????????????????? | | ?????????????????????????????????????????????????? | | ?????????????????????????????????????????????????? | | ?????????????????????????????????????????????????? | | ?????????????????????????????????